[Event "Early-Titled-Tuesday-Blitz-January-30-2024"]
[Site "Chess.com"]
[Date "2024.01.30"]
[Round "2"]
[White "Djager97"]
[Black "claudyna16"]
[Result "1-0"]
[WhiteElo "2569"]
[BlackElo "2345"]
[TimeControl "180+1"]
[EndTime "8:17:01 PST"]
[Termination "Djager97 won by checkmate"]

1. e4 {[%clk 0:02:54.9]} 1... e5 {[%clk 0:02:59.8]} 2. Nf3 {[%clk 0:02:54.5]}
2... Nc6 {[%clk 0:03:00.2]} 3. d4 {[%clk 0:02:54.9]} 3... exd4 {[%clk 0:03:00]}
4. Nxd4 {[%clk 0:02:55.8]} 4... Nf6 {[%clk 0:03:00]} 5. Nc3 {[%clk 0:02:55.2]}
5... Bb4 {[%clk 0:03:00]} 6. Nxc6 {[%clk 0:02:55.8]} 6... bxc6 {[%clk
0:03:00.9]} 7. Bd3 {[%clk 0:02:56]} 7... O-O {[%clk 0:03:00.2]} 8. O-O {[%clk
0:02:55.5]} 8... d5 {[%clk 0:03:00.8]} 9. exd5 {[%clk 0:02:55.5]} 9... cxd5
{[%clk 0:03:01.7]} 10. Bg5 {[%clk 0:02:51.4]} 10... c6 {[%clk 0:03:01.5]} 11.
Qf3 {[%clk 0:02:51.4]} 11... Be7 {[%clk 0:03:01.5]} 12. Rfe1 {[%clk 0:02:44.6]}
12... Be6 {[%clk 0:03:01.2]} 13. Ne2 {[%clk 0:02:42.4]} 13... h6 {[%clk
0:02:59.1]} 14. Bh4 {[%clk 0:02:40.7]} 14... Bg4 {[%clk 0:02:50.7]} 15. Qe3
{[%clk 0:02:34]} 15... Re8 {[%clk 0:02:47.7]} 16. Nd4 {[%clk 0:02:32.1]} 16...
Qd7 {[%clk 0:02:37.9]} 17. h3 {[%clk 0:02:24.7]} 17... Bb4 {[%clk 0:02:35.4]}
18. Qf4 {[%clk 0:01:50.4]} 18... Rxe1+ {[%clk 0:02:31.6]} 19. Rxe1 {[%clk
0:01:49.5]} 19... Bxe1 {[%clk 0:02:32.5]} 20. Bxf6 {[%clk 0:01:49.4]} 20... Bh5
{[%clk 0:02:04.1]} 21. Nf5 {[%clk 0:01:41.9]} 21... Bg6 {[%clk 0:01:07.1]} 22.
Nxg7 {[%clk 0:01:26.8]} 22... Bxd3 {[%clk 0:00:33]} 23. cxd3 {[%clk 0:01:27.7]}
23... Kh7 {[%clk 0:00:27.8]} 24. Nf5 {[%clk 0:01:26.7]} 24... Kg6 {[%clk
0:00:25.6]} 25. Qxh6+ {[%clk 0:01:25.2]} 25... Kxf5 {[%clk 0:00:25.7]} 26. Qg5+
{[%clk 0:01:26.1]} 26... Ke6 {[%clk 0:00:25.4]} 27. Qe5# {[%clk 0:01:27]} 1-0

[Event "Early-Titled-Tuesday-Blitz-January-30-2024"]
[Site "Chess.com"]
[Date "2024.01.30"]
[Round "2"]
[White "Mesa_1"]
[Black "MetiForce"]
[Result "0-1"]
[WhiteElo "2570"]
[BlackElo "2856"]
[TimeControl "180+1"]
[EndTime "8:17:02 PST"]
[Termination "MetiForce won by resignation"]

1. e4 {[%clk 0:03:00.9]} 1... c5 {[%clk 0:02:57.1]} 2. Nf3 {[%clk 0:03:00.5]}
2... d6 {[%clk 0:02:56.3]} 3. Nc3 {[%clk 0:03:00.9]} 3... Nc6 {[%clk 0:02:56.2]}
4. d4 {[%clk 0:02:55.6]} 4... cxd4 {[%clk 0:02:56.4]} 5. Nxd4 {[%clk 0:02:56.5]}
5... Nf6 {[%clk 0:02:57.2]} 6. Bg5 {[%clk 0:02:53.4]} 6... e6 {[%clk 0:02:54.6]}
7. Qd2 {[%clk 0:02:54]} 7... a6 {[%clk 0:02:54.4]} 8. O-O-O {[%clk 0:02:51.9]}
8... Bd7 {[%clk 0:02:51.4]} 9. h4 {[%clk 0:02:46.6]} 9... Be7 {[%clk 0:02:50.2]}
10. Kb1 {[%clk 0:02:40.2]} 10... Nxd4 {[%clk 0:02:45.6]} 11. Qxd4 {[%clk
0:02:41.1]} 11... Qc7 {[%clk 0:02:45.8]} 12. f3 {[%clk 0:02:38.6]} 12... b5
{[%clk 0:02:45.6]} 13. g4 {[%clk 0:02:10.1]} 13... O-O {[%clk 0:02:36.4]} 14.
Be3 {[%clk 0:02:07.6]} 14... Rfc8 {[%clk 0:02:30.3]} 15. g5 {[%clk 0:02:05.8]}
15... Nh5 {[%clk 0:02:29.2]} 16. Rg1 {[%clk 0:02:00.5]} 16... b4 {[%clk
0:02:29.1]} 17. Ne2 {[%clk 0:01:35.2]} 17... Qxc2+ {[%clk 0:02:28.9]} 18. Ka1
{[%clk 0:01:35.9]} 18... e5 {[%clk 0:02:23.5]} 19. Qd2 {[%clk 0:01:28.4]} 19...
a5 {[%clk 0:02:20.8]} 20. Nc1 {[%clk 0:01:17.1]} 20... a4 {[%clk 0:02:14.1]} 21.
Qxc2 {[%clk 0:01:12.5]} 21... Rxc2 {[%clk 0:02:15]} 22. Bd3 {[%clk 0:01:11.4]}
22... Rh2 {[%clk 0:02:13.2]} 23. Rh1 {[%clk 0:01:11.5]} 23... Rxh1 {[%clk
0:02:06.7]} 24. Rxh1 {[%clk 0:01:12.4]} 24... Rc8 {[%clk 0:02:05.1]} 25. Bd2
{[%clk 0:01:08.1]} 25... Rb8 {[%clk 0:01:56.6]} 26. Ne2 {[%clk 0:01:06.3]} 26...
Be6 {[%clk 0:01:43.1]} 27. Rc1 {[%clk 0:01:04.1]} 27... d5 {[%clk 0:01:42.1]}
28. Rc7 {[%clk 0:01:02.1]} 28... Bd6 {[%clk 0:01:30]} 29. Rc6 {[%clk 0:01:02.3]}
29... Bf8 {[%clk 0:01:30.1]} 30. Ra6 {[%clk 0:00:53.2]} 30... dxe4 {[%clk
0:01:26.3]} 31. Bxe4 {[%clk 0:00:48.9]} 31... Bc4 {[%clk 0:01:24.6]} 0-1

[Event "Early-Titled-Tuesday-Blitz-January-30-2024"]
[Site "Chess.com"]
[Date "2024.01.30"]
[Round "2"]
[White "maciejbrzeski128"]
[Black "alexrustemov"]
[Result "1-0"]
[WhiteElo "2444"]
[BlackElo "2783"]
[TimeControl "180+1"]
[EndTime "8:17:05 PST"]
[Termination "maciejbrzeski128 won on time"]

1. e4 {[%clk 0:03:00.9]} 1... e6 {[%clk 0:02:57.6]} 2. d4 {[%clk 0:02:59.7]}
2... d5 {[%clk 0:02:58.5]} 3. Nd2 {[%clk 0:02:59.2]} 3... dxe4 {[%clk
0:02:58.7]} 4. Nxe4 {[%clk 0:03:00.1]} 4... Bd7 {[%clk 0:02:59.3]} 5. Nf3 {[%clk
0:02:59.7]} 5... Bc6 {[%clk 0:02:59.9]} 6. Bd3 {[%clk 0:03:00.3]} 6... Nd7
{[%clk 0:03:00.5]} 7. O-O {[%clk 0:02:49.3]} 7... Ngf6 {[%clk 0:03:00.9]} 8. Ng3
{[%clk 0:02:49.6]} 8... Be7 {[%clk 0:03:00.9]} 9. b3 {[%clk 0:02:49.2]} 9... O-O
{[%clk 0:03:00.8]} 10. Bb2 {[%clk 0:02:49.8]} 10... b5 {[%clk 0:03:00.3]} 11.
Ne5 {[%clk 0:02:48.9]} 11... Nxe5 {[%clk 0:02:56.2]} 12. dxe5 {[%clk 0:02:49.8]}
12... Nd5 {[%clk 0:02:54.5]} 13. Be4 {[%clk 0:02:40.5]} 13... Nb4 {[%clk
0:02:46.3]} 14. Qe2 {[%clk 0:02:36.5]} 14... Bxe4 {[%clk 0:02:42.5]} 15. Nxe4
{[%clk 0:02:36.4]} 15... a6 {[%clk 0:02:37.3]} 16. Rad1 {[%clk 0:02:35.4]} 16...
Qc8 {[%clk 0:02:27.3]} 17. Nf6+ {[%clk 0:02:27]} 17... Kh8 {[%clk 0:02:26.6]}
18. Rd4 {[%clk 0:02:04.3]} 18... gxf6 {[%clk 0:02:15.9]} 19. exf6 {[%clk
0:01:56.6]} 19... Bxf6 {[%clk 0:02:10.6]} 20. Rh4 {[%clk 0:01:50.4]} 20... Bxb2
{[%clk 0:01:33.9]} 21. Qh5 {[%clk 0:01:47.2]} 21... Kg7 {[%clk 0:01:34.3]} 22.
Qg5+ {[%clk 0:01:41.6]} 22... Kh8 {[%clk 0:01:32.9]} 23. Qh6 {[%clk 0:01:41.5]}
1-0

[Event "Early-Titled-Tuesday-Blitz-January-30-2024"]
[Site "Chess.com"]
[Date "2024.01.30"]
[Round "2"]
[White "Baby_Legs"]
[Black "PedroGil25"]
[Result "0-1"]
[WhiteElo "2636"]
[BlackElo "2402"]
[TimeControl "180+1"]
[EndTime "8:17:06 PST"]
[Termination "PedroGil25 won by resignation"]

1. d4 {[%clk 0:03:00.9]} 1... Nf6 {[%clk 0:02:59.7]} 2. Bg5 {[%clk 0:03:00.1]}
2... b6 {[%clk 0:02:59]} 3. Nc3 {[%clk 0:02:57.8]} 3... Bb7 {[%clk 0:02:58.9]}
4. Nf3 {[%clk 0:02:55]} 4... e6 {[%clk 0:02:58]} 5. e4 {[%clk 0:02:54.2]} 5...
h6 {[%clk 0:02:57.6]} 6. Bxf6 {[%clk 0:02:53.8]} 6... Qxf6 {[%clk 0:02:58.5]} 7.
Bd3 {[%clk 0:02:50.6]} 7... Bb4 {[%clk 0:02:56.8]} 8. O-O {[%clk 0:02:43.3]}
8... Bxc3 {[%clk 0:02:55.4]} 9. bxc3 {[%clk 0:02:44.2]} 9... d6 {[%clk 0:02:56]}
10. a4 {[%clk 0:02:35.1]} 10... a5 {[%clk 0:02:54.3]} 11. c4 {[%clk 0:02:15.4]}
11... Nd7 {[%clk 0:02:53.1]} 12. c3 {[%clk 0:02:10.7]} 12... e5 {[%clk
0:02:52.2]} 13. g3 {[%clk 0:02:06.4]} 13... O-O {[%clk 0:02:51.8]} 14. Re1
{[%clk 0:01:51.4]} 14... Rfe8 {[%clk 0:02:50.6]} 15. Ra2 {[%clk 0:01:49.2]}
15... Re7 {[%clk 0:02:29.8]} 16. Nh4 {[%clk 0:01:45.4]} 16... g6 {[%clk
0:02:24.8]} 17. Bb1 {[%clk 0:01:41.9]} 17... Rae8 {[%clk 0:02:23.9]} 18. f3
{[%clk 0:01:41.5]} 18... Ba6 {[%clk 0:02:12.6]} 19. Qd3 {[%clk 0:01:28.2]} 19...
exd4 {[%clk 0:02:08.8]} 20. Qxd4 {[%clk 0:01:22.1]} 20... Re5 {[%clk 0:01:58.1]}
21. f4 {[%clk 0:01:15.4]} 21... Rc5 {[%clk 0:01:57.8]} 22. e5 {[%clk 0:01:16]}
22... Qg7 {[%clk 0:01:51.2]} 23. Bd3 {[%clk 0:01:11.2]} 23... Nf8 {[%clk
0:01:47.6]} 24. Rae2 {[%clk 0:01:06.5]} 24... dxe5 {[%clk 0:01:46.5]} 25. Qf2
{[%clk 0:01:02]} 25... e4 {[%clk 0:01:42.1]} 26. Rxe4 {[%clk 0:01:00.7]} 26...
Rxe4 {[%clk 0:01:41.1]} 27. Rxe4 {[%clk 0:01:01.6]} 27... Qxc3 {[%clk
0:01:39.7]} 28. Qd4 {[%clk 0:00:58.8]} 28... Qxd4+ {[%clk 0:01:38.4]} 29. Rxd4
{[%clk 0:00:59.7]} 29... Ne6 {[%clk 0:01:38.2]} 30. Re4 {[%clk 0:00:58.7]} 30...
Rc6 {[%clk 0:01:34]} 31. Nf3 {[%clk 0:00:58.3]} 31... Rd6 {[%clk 0:01:31.4]} 32.
Be2 {[%clk 0:00:58.4]} 32... Kf8 {[%clk 0:01:23.5]} 33. Ne5 {[%clk 0:00:54.7]}
33... Nc5 {[%clk 0:01:22.2]} 34. Re3 {[%clk 0:00:52.5]} 34... Nxa4 {[%clk
0:01:21.9]} 35. c5 {[%clk 0:00:52.8]} 35... Nxc5 {[%clk 0:01:21.7]} 0-1

[Event "Early-Titled-Tuesday-Blitz-January-30-2024"]
[Site "Chess.com"]
[Date "2024.01.30"]
[Round "2"]
[White "cthulhuuu"]
[Black "Lion-Al-Messi"]
[Result "0-1"]
[WhiteElo "2348"]
[BlackElo "2569"]
[TimeControl "180+1"]
[EndTime "8:17:06 PST"]
[Termination "Lion-Al-Messi won on time"]

1. e4 {[%clk 0:02:59.9]} 1... e6 {[%clk 0:02:59.2]} 2. d3 {[%clk 0:03:00.1]}
2... d5 {[%clk 0:02:58.8]} 3. Nd2 {[%clk 0:03:00.7]} 3... Nf6 {[%clk 0:02:57.7]}
4. Ngf3 {[%clk 0:03:01.1]} 4... b6 {[%clk 0:02:55.9]} 5. g3 {[%clk 0:02:48.1]}
5... Bb7 {[%clk 0:02:55.2]} 6. Qe2 {[%clk 0:02:47.8]} 6... c5 {[%clk 0:02:54.6]}
7. Bg2 {[%clk 0:02:48]} 7... Be7 {[%clk 0:02:54.4]} 8. O-O {[%clk 0:02:48]} 8...
Nc6 {[%clk 0:02:54.4]} 9. c3 {[%clk 0:02:48]} 9... Qc7 {[%clk 0:02:54.4]} 10. a3
{[%clk 0:02:48.1]} 10... a5 {[%clk 0:02:54]} 11. e5 {[%clk 0:02:32.5]} 11... Nd7
{[%clk 0:02:53.4]} 12. d4 {[%clk 0:02:32.9]} 12... Ba6 {[%clk 0:02:52.7]} 13. c4
{[%clk 0:02:28.9]} 13... cxd4 {[%clk 0:02:51.8]} 14. b3 {[%clk 0:02:02]} 14...
Ndxe5 {[%clk 0:02:48.4]} 15. Nxe5 {[%clk 0:01:57.3]} 15... Qxe5 {[%clk
0:02:47.7]} 16. Qd1 {[%clk 0:01:40.8]} 16... O-O {[%clk 0:02:46.2]} 17. Re1
{[%clk 0:01:39.4]} 17... Qd6 {[%clk 0:02:45.8]} 18. Nf3 {[%clk 0:01:16.7]} 18...
Bf6 {[%clk 0:02:45.1]} 19. cxd5 {[%clk 0:01:10.2]} 19... exd5 {[%clk 0:02:46]}
20. Bf4 {[%clk 0:01:10.2]} 20... Qd7 {[%clk 0:02:44.3]} 21. Ne5 {[%clk
0:01:09.7]} 21... Nxe5 {[%clk 0:02:43.5]} 22. Bxe5 {[%clk 0:01:10.6]} 22... Be7
{[%clk 0:02:30.5]} 23. Qxd4 {[%clk 0:01:05]} 23... Bc5 {[%clk 0:02:30.3]} 24.
Qxd5 {[%clk 0:01:05]} 24... Qxd5 {[%clk 0:02:30.5]} 25. Bxd5 {[%clk 0:01:05.9]}
25... Rad8 {[%clk 0:02:30.9]} 26. Rad1 {[%clk 0:00:58.9]} 26... Bxa3 {[%clk
0:02:30.7]} 27. Bc7 {[%clk 0:00:59]} 27... Rd7 {[%clk 0:02:28.7]} 28. Bxb6
{[%clk 0:00:56.1]} 28... Bb4 {[%clk 0:02:28.8]} 29. Re3 {[%clk 0:00:43.1]} 29...
Rb8 {[%clk 0:02:24.3]} 30. Rf3 {[%clk 0:00:05.2]} 30... Rxd5 {[%clk 0:02:12.3]}
31. Rxd5 {[%clk 0:00:04.7]} 31... Bb7 {[%clk 0:02:11.5]} 32. Rfd3 {[%clk
0:00:01.2]} 32... Bxd5 {[%clk 0:02:11.4]} 33. Rxd5 {[%clk 0:00:01.3]} 33... Rxb6
{[%clk 0:02:11.6]} 0-1

[Event "Early-Titled-Tuesday-Blitz-January-30-2024"]
[Site "Chess.com"]
[Date "2024.01.30"]
[Round "2"]
[White "Iskusnyh"]
[Black "mishanick"]
[Result "0-1"]
[WhiteElo "2667"]
[BlackElo "3150"]
[TimeControl "180+1"]
[EndTime "8:17:07 PST"]
[Termination "mishanick won on time"]

1. d4 {[%clk 0:02:58.9]} 1... d5 {[%clk 0:03:00.4]} 2. c4 {[%clk 0:02:57.7]}
2... e6 {[%clk 0:03:00.9]} 3. Nf3 {[%clk 0:02:56.5]} 3... Nd7 {[%clk 0:03:01.1]}
4. g3 {[%clk 0:02:47.9]} 4... dxc4 {[%clk 0:03:01.1]} 5. Bg2 {[%clk 0:02:47.4]}
5... c6 {[%clk 0:03:00]} 6. O-O {[%clk 0:02:37.6]} 6... b5 {[%clk 0:02:58.3]} 7.
Nc3 {[%clk 0:02:29.5]} 7... Bb7 {[%clk 0:02:57.7]} 8. Bg5 {[%clk 0:02:22.1]}
8... Be7 {[%clk 0:02:57.2]} 9. Bxe7 {[%clk 0:02:09.6]} 9... Nxe7 {[%clk
0:02:56.6]} 10. b3 {[%clk 0:01:52.6]} 10... cxb3 {[%clk 0:02:50.7]} 11. axb3
{[%clk 0:01:51.5]} 11... O-O {[%clk 0:02:49.1]} 12. Qb1 {[%clk 0:01:42.4]} 12...
Nd5 {[%clk 0:02:44.5]} 13. Ne4 {[%clk 0:01:40]} 13... Qe7 {[%clk 0:02:41.2]} 14.
Rc1 {[%clk 0:01:33.9]} 14... a5 {[%clk 0:02:40.8]} 15. Nc5 {[%clk 0:01:18.9]}
15... Nxc5 {[%clk 0:02:36.9]} 16. Rxc5 {[%clk 0:01:18.5]} 16... Rfc8 {[%clk
0:02:31.2]} 17. Ne5 {[%clk 0:01:08.8]} 17... Qd6 {[%clk 0:02:28.7]} 18. Bxd5
{[%clk 0:00:41.4]} 18... exd5 {[%clk 0:02:29]} 19. Qc2 {[%clk 0:00:31.3]} 19...
f6 {[%clk 0:02:19.6]} 20. Nd3 {[%clk 0:00:27]} 20... Re8 {[%clk 0:02:20.1]} 21.
Qd2 {[%clk 0:00:20.4]} 21... Bc8 {[%clk 0:02:15.6]} 22. e3 {[%clk 0:00:12.6]}
22... Bf5 {[%clk 0:02:14.6]} 23. Nf4 {[%clk 0:00:11.5]} 23... g5 {[%clk
0:02:12.6]} 24. Ne2 {[%clk 0:00:10]} 24... Be4 {[%clk 0:02:11.7]} 25. Rxa5
{[%clk 0:00:06]} 25... Rxa5 {[%clk 0:02:11.3]} 26. Qxa5 {[%clk 0:00:05.6]} 26...
Qd7 {[%clk 0:02:11.7]} 27. Nc3 {[%clk 0:00:04.3]} 27... Bf3 {[%clk 0:02:11.7]}
28. Qa1 {[%clk 0:00:03.4]} 28... h5 {[%clk 0:02:04.2]} 29. b4 {[%clk 0:00:02]}
29... h4 {[%clk 0:02:03.7]} 30. Qf1 {[%clk 0:00:01.5]} 30... Ra8 {[%clk
0:02:02.8]} 0-1

[Event "Early-Titled-Tuesday-Blitz-January-30-2024"]
[Site "Chess.com"]
[Date "2024.01.30"]
[Round "2"]
[White "zubridis"]
[Black "tacticthunder"]
[Result "0-1"]
[WhiteElo "2549"]
[BlackElo "2797"]
[TimeControl "180+1"]
[EndTime "8:17:08 PST"]
[Termination "tacticthunder won on time"]

1. e4 {[%clk 0:03:00.4]} 1... c5 {[%clk 0:02:50.6]} 2. Nc3 {[%clk 0:02:59.1]}
2... Nc6 {[%clk 0:02:49.6]} 3. f4 {[%clk 0:02:57.7]} 3... e6 {[%clk 0:02:47.7]}
4. Nf3 {[%clk 0:02:56.9]} 4... d5 {[%clk 0:02:47.2]} 5. Bb5 {[%clk 0:02:56.3]}
5... Ne7 {[%clk 0:02:46.7]} 6. Qe2 {[%clk 0:02:55.6]} 6... d4 {[%clk 0:02:45.5]}
7. Nd1 {[%clk 0:02:49.4]} 7... a6 {[%clk 0:02:41.9]} 8. Bxc6+ {[%clk 0:02:47.4]}
8... Nxc6 {[%clk 0:02:42.8]} 9. d3 {[%clk 0:02:47]} 9... b5 {[%clk 0:02:41.5]}
10. O-O {[%clk 0:02:45.6]} 10... Be7 {[%clk 0:02:40.4]} 11. Nf2 {[%clk
0:02:39.1]} 11... Bb7 {[%clk 0:02:37.3]} 12. Bd2 {[%clk 0:02:35.7]} 12... O-O
{[%clk 0:02:36.9]} 13. a3 {[%clk 0:02:09.2]} 13... f5 {[%clk 0:02:10.4]} 14.
Rae1 {[%clk 0:01:59.1]} 14... Kh8 {[%clk 0:02:02.6]} 15. g4 {[%clk 0:01:54.7]}
15... Bh4 {[%clk 0:01:51.8]} 16. Nxh4 {[%clk 0:01:23]} 16... Qxh4 {[%clk
0:01:52.7]} 17. Qf3 {[%clk 0:01:22.8]} 17... Ne7 {[%clk 0:01:49.8]} 18. Qg3
{[%clk 0:01:20.6]} 18... Ng6 {[%clk 0:01:48.9]} 19. exf5 {[%clk 0:01:09.1]}
19... exf5 {[%clk 0:01:49.8]} 20. g5 {[%clk 0:00:55.2]} 20... Qh5 {[%clk
0:01:45.5]} 21. Qh3 {[%clk 0:00:15.2]} 21... Nh4 {[%clk 0:01:45.2]} 0-1

[Event "Early-Titled-Tuesday-Blitz-January-30-2024"]
[Site "Chess.com"]
[Date "2024.01.30"]
[Round "2"]
[White "Kotlyar_K"]
[Black "olawsson"]
[Result "1-0"]
[WhiteElo "2495"]
[BlackElo "2161"]
[TimeControl "180+1"]
[EndTime "8:17:10 PST"]
[Termination "Kotlyar_K won on time"]

1. e4 {[%clk 0:03:00.9]} 1... c5 {[%clk 0:02:59.7]} 2. Nf3 {[%clk 0:02:59.9]}
2... a6 {[%clk 0:02:59.9]} 3. d4 {[%clk 0:02:57.6]} 3... cxd4 {[%clk 0:02:59.8]}
4. Nxd4 {[%clk 0:02:58.5]} 4... Nf6 {[%clk 0:03:00.2]} 5. Nc3 {[%clk 0:02:58.6]}
5... e5 {[%clk 0:03:00.2]} 6. Nb3 {[%clk 0:02:44.8]} 6... Bb4 {[%clk 0:02:58.7]}
7. Bg5 {[%clk 0:02:40.8]} 7... d6 {[%clk 0:02:53.9]} 8. Be2 {[%clk 0:02:37.7]}
8... h6 {[%clk 0:02:47.8]} 9. Bxf6 {[%clk 0:02:35.9]} 9... Bxc3+ {[%clk
0:02:28.8]} 10. bxc3 {[%clk 0:02:35.5]} 10... Qxf6 {[%clk 0:02:29.7]} 11. O-O
{[%clk 0:02:22.4]} 11... O-O {[%clk 0:02:28.9]} 12. Na5 {[%clk 0:02:19.5]} 12...
Rd8 {[%clk 0:01:15.5]} 13. Rb1 {[%clk 0:02:13.9]} 13... b5 {[%clk 0:00:46.2]}
14. c4 {[%clk 0:02:10.9]} 14... Qg6 {[%clk 0:00:21.2]} 15. Bf3 {[%clk 0:02:01]}
15... bxc4 {[%clk 0:00:18.5]} 16. Nxc4 {[%clk 0:02:01]} 16... Nc6 {[%clk
0:00:17.4]} 17. Qd5 {[%clk 0:01:56.8]} 17... Bd7 {[%clk 0:00:12]} 18. Nb6 {[%clk
0:01:52.1]} 18... Rac8 {[%clk 0:00:09.3]} 19. Nxd7 {[%clk 0:01:52]} 19... Rxd7
{[%clk 0:00:09.8]} 20. h3 {[%clk 0:01:43.6]} 20... Nd4 {[%clk 0:00:09.9]} 21.
Bg4 {[%clk 0:01:43.9]} 21... Rc5 {[%clk 0:00:02]} 22. Qa8+ {[%clk 0:01:44]}
22... Kh7 {[%clk 0:00:01.8]} 23. Bxd7 {[%clk 0:01:43.3]} 23... Nf3+ {[%clk
0:00:01]} 24. Kh1 {[%clk 0:01:41.5]} 1-0

[Event "Early-Titled-Tuesday-Blitz-January-30-2024"]
[Site "Chess.com"]
[Date "2024.01.30"]
[Round "2"]
[White "chucksterf10"]
[Black "MatthewG-p4p"]
[Result "1-0"]
[WhiteElo "2593"]
[BlackElo "2861"]
[TimeControl "180+1"]
[EndTime "8:17:16 PST"]
[Termination "chucksterf10 won by resignation"]

1. d4 {[%clk 0:03:00.9]} 1... Nf6 {[%clk 0:02:56.6]} 2. c4 {[%clk 0:03:01.1]}
2... c5 {[%clk 0:02:56.8]} 3. d5 {[%clk 0:03:01]} 3... e6 {[%clk 0:02:57.4]} 4.
Nc3 {[%clk 0:03:01]} 4... exd5 {[%clk 0:02:58.3]} 5. cxd5 {[%clk 0:03:01.7]}
5... d6 {[%clk 0:02:59.2]} 6. e4 {[%clk 0:03:02.3]} 6... g6 {[%clk 0:03:00.1]}
7. Nf3 {[%clk 0:02:58.8]} 7... a6 {[%clk 0:03:00.4]} 8. a4 {[%clk 0:02:58.9]}
8... Bg4 {[%clk 0:02:59.9]} 9. Be2 {[%clk 0:02:57.5]} 9... Bxf3 {[%clk
0:02:59.2]} 10. Bxf3 {[%clk 0:02:58.4]} 10... Bg7 {[%clk 0:02:59.6]} 11. O-O
{[%clk 0:02:58.6]} 11... Nbd7 {[%clk 0:02:57.9]} 12. Be2 {[%clk 0:02:55.2]}
12... O-O {[%clk 0:02:57.9]} 13. Bf4 {[%clk 0:02:52.8]} 13... Re8 {[%clk
0:02:49.1]} 14. Bxd6 {[%clk 0:02:35.2]} 14... Nxe4 {[%clk 0:02:20.7]} 15. Nxe4
{[%clk 0:02:36.1]} 15... Rxe4 {[%clk 0:02:21.3]} 16. Qc2 {[%clk 0:01:42.2]}
16... Rb4 {[%clk 0:02:09]} 17. Rab1 {[%clk 0:01:37.8]} 17... Qb6 {[%clk
0:01:25]} 18. Be7 {[%clk 0:01:30.9]} 18... Bxb2 {[%clk 0:01:15.7]} 19. a5 {[%clk
0:01:26.7]} 19... Qxa5 {[%clk 0:00:50.5]} 20. Rxb2 {[%clk 0:01:25.8]} 20... Rxb2
{[%clk 0:00:40]} 21. Qxb2 {[%clk 0:01:26.7]} 21... b5 {[%clk 0:00:40.8]} 22. d6
{[%clk 0:01:21.5]} 22... Rc8 {[%clk 0:00:37.1]} 23. Bg4 {[%clk 0:01:19.8]} 23...
f5 {[%clk 0:00:37]} 24. Bf3 {[%clk 0:01:18.6]} 24... Nb6 {[%clk 0:00:18.9]} 25.
d7 {[%clk 0:01:15.6]} 1-0

[Event "Early-Titled-Tuesday-Blitz-January-30-2024"]
[Site "Chess.com"]
[Date "2024.01.30"]
[Round "2"]
[White "Grischuk"]
[Black "Viktor_Poddubnyi"]
[Result "1-0"]
[WhiteElo "3077"]
[BlackElo "2325"]
[TimeControl "180+1"]
[EndTime "8:17:17 PST"]
[Termination "Grischuk won by resignation"]

1. d4 {[%clk 0:03:00.9]} 1... g6 {[%clk 0:03:00]} 2. e4 {[%clk 0:03:01]} 2...
Bg7 {[%clk 0:03:00.5]} 3. Nf3 {[%clk 0:03:01.8]} 3... d6 {[%clk 0:03:00.5]} 4.
Bd3 {[%clk 0:03:02.5]} 4... Nf6 {[%clk 0:02:59.4]} 5. O-O {[%clk 0:03:03.1]}
5... Nc6 {[%clk 0:03:00]} 6. Re1 {[%clk 0:03:01.7]} 6... e5 {[%clk 0:02:52.4]}
7. dxe5 {[%clk 0:03:00.8]} 7... dxe5 {[%clk 0:02:52.1]} 8. c3 {[%clk 0:02:47.2]}
8... O-O {[%clk 0:02:49.9]} 9. Qc2 {[%clk 0:02:45.5]} 9... Qe7 {[%clk
0:02:48.9]} 10. b4 {[%clk 0:02:40.6]} 10... Bg4 {[%clk 0:02:08.5]} 11. Nbd2
{[%clk 0:02:39.3]} 11... Rfd8 {[%clk 0:02:07.9]} 12. a4 {[%clk 0:02:36.7]} 12...
a6 {[%clk 0:01:54.6]} 13. Ba3 {[%clk 0:02:35.6]} 13... Qe8 {[%clk 0:01:44.4]}
14. h3 {[%clk 0:02:31.2]} 14... Bxf3 {[%clk 0:01:34.8]} 15. Nxf3 {[%clk
0:02:32.1]} 15... Nh5 {[%clk 0:01:28.2]} 16. Bc4 {[%clk 0:02:26.6]} 16... h6
{[%clk 0:00:55.8]} 17. g3 {[%clk 0:02:24.5]} 17... Bf8 {[%clk 0:00:52.1]} 18.
Kg2 {[%clk 0:02:24]} 18... Ng7 {[%clk 0:00:51.7]} 19. Bc1 {[%clk 0:02:21.9]}
19... Kh7 {[%clk 0:00:46.4]} 20. Be3 {[%clk 0:02:19.8]} 20... Ne6 {[%clk
0:00:39.6]} 21. h4 {[%clk 0:02:18.1]} 21... Bg7 {[%clk 0:00:33.5]} 22. Qb3
{[%clk 0:02:16.2]} 22... Qe7 {[%clk 0:00:31.5]} 23. Bxe6 {[%clk 0:02:10.6]}
23... fxe6 {[%clk 0:00:25.6]} 24. Rad1 {[%clk 0:02:10.5]} 24... Rf8 {[%clk
0:00:25.1]} 25. Bc5 {[%clk 0:02:06.1]} 25... Qf6 {[%clk 0:00:22.2]} 26. Bxf8
{[%clk 0:02:07]} 26... Rxf8 {[%clk 0:00:22.2]} 27. Rd3 {[%clk 0:02:05.6]} 27...
Nd8 {[%clk 0:00:16.5]} 28. Re2 {[%clk 0:02:01.7]} 28... Nf7 {[%clk 0:00:16.9]}
29. c4 {[%clk 0:01:59.7]} 29... h5 {[%clk 0:00:13.3]} 30. c5 {[%clk 0:01:58]}
30... g5 {[%clk 0:00:13]} 31. hxg5 {[%clk 0:01:57]} 31... Nxg5 {[%clk
0:00:13.9]} 32. Nxg5+ {[%clk 0:01:57.5]} 32... Qxg5 {[%clk 0:00:14.8]} 33. Qxe6
{[%clk 0:01:58.1]} 33... Rf6 {[%clk 0:00:13.1]} 34. Qh3 {[%clk 0:01:57.7]} 34...
Rh6 {[%clk 0:00:11.1]} 35. Qf5+ {[%clk 0:01:57]} 35... Qxf5 {[%clk 0:00:09.3]}
36. exf5 {[%clk 0:01:57.9]} 1-0

[Event "Early-Titled-Tuesday-Blitz-January-30-2024"]
[Site "Chess.com"]
[Date "2024.01.30"]
[Round "2"]
[White "LaPiToB"]
[Black "OneTrickPony_82"]
[Result "0-1"]
[WhiteElo "2289"]
[BlackElo "2538"]
[TimeControl "180+1"]
[EndTime "8:17:18 PST"]
[Termination "OneTrickPony_82 won on time"]

1. d4 {[%clk 0:00:11]} 1... Nf6 {[%clk 0:02:49.6]} 2. c4 {[%clk 0:00:11.9]} 2...
e6 {[%clk 0:02:48.9]} 3. Nf3 {[%clk 0:00:12.2]} 3... d5 {[%clk 0:02:48.7]} 4. e3
{[%clk 0:00:12.7]} 4... b6 {[%clk 0:02:48]} 5. Nc3 {[%clk 0:00:13.3]} 5... Bb7
{[%clk 0:02:43.2]} 6. Be2 {[%clk 0:00:13.8]} 6... Nbd7 {[%clk 0:02:42.9]} 7. O-O
{[%clk 0:00:14.5]} 7... a6 {[%clk 0:02:42.8]} 8. b3 {[%clk 0:00:15.1]} 8... Bd6
{[%clk 0:02:42]} 9. Bb2 {[%clk 0:00:15.6]} 9... O-O {[%clk 0:02:41.2]} 10. a4
{[%clk 0:00:16.1]} 10... Qe7 {[%clk 0:02:30.4]} 11. Qc2 {[%clk 0:00:16.4]} 11...
Ne4 {[%clk 0:02:27.3]} 12. Nxe4 {[%clk 0:00:16.3]} 12... dxe4 {[%clk 0:02:27.1]}
13. Nd2 {[%clk 0:00:17.2]} 13... f5 {[%clk 0:02:25]} 14. g3 {[%clk 0:00:15.7]}
14... Rad8 {[%clk 0:02:03.5]} 15. f3 {[%clk 0:00:16]} 15... Nf6 {[%clk
0:01:57.3]} 16. fxe4 {[%clk 0:00:15.9]} 16... Nxe4 {[%clk 0:01:56.7]} 17. Nxe4
{[%clk 0:00:16.2]} 17... Bxe4 {[%clk 0:01:56.3]} 18. Bd3 {[%clk 0:00:17]} 18...
Qg5 {[%clk 0:01:50.9]} 19. Rf2 {[%clk 0:00:17.4]} 19... Qxe3 {[%clk 0:01:26]}
20. Rf1 {[%clk 0:00:16.1]} 20... Bxd3 {[%clk 0:01:22.9]} 0-1